bitfinex-derivatives/quotes_SOLF0:USTF0_20250730
["timestamp","ask_amount","ask_price","bid_price","bid_amount"]
[1753899194177,6.28253469,179.97,179.86,3.21]
[1753899194477,3.17,179.94,179.86,3.21]
[1753899196477,8.7284,179.92,179.86,3.21]
[1753899197481,3.17,179.91,179.86,3.21]
[1753899198275,5.559,179.9,179.86,3.21]
[1753899198482,8.729,179.9,179.86,3.21]
[1753899198680,8.729,179.9,179.85,6.28253469]
[1753899198874,3.17,179.9,179.88,3.21]
[1753899199781,5.5592,179.89,179.88,3.21]
[1753899200974,8.729,179.9,179.88,3.21]
[1753899201682,5.5587,179.91,179.86,3.21]
[1753899201887,3.17,179.92,179.86,3.21]
[1753899202085,5.559,179.9,179.86,3.21]
[1753899202384,5.559,179.9,179.84,5.5606]
[1753899202385,3.17,179.97,179.89,3.21]
[1753899203080,3.17,179.98,179.88,6.28253469]
[1753899203279,3.17,179.98,179.87,3.21]
[1753899203786,3.17,179.96,179.87,3.21]
[1753899205085,3.17,179.96,179.85,6.28253469]
[1753899205280,8.7297,179.88,179.86,3.21]
[1753899205481,5.5597,179.88,179.87,3.21]
[1753899205991,5.5599,179.87,179.84,6.28253469]
[1753899206181,3.17,179.94,179.84,6.28253469]
[1753899206380,3.17,179.94,179.85,3.21]
[1753899206582,5.5587,179.91,179.87,6.28253469]
[1753899206987,5.5582,179.93,179.91,3.21]
[1753899207182,8.7282,179.93,179.91,3.21]
[1753899207384,3.17,179.93,179.91,3.21]
[1753899207585,3.17,179.92,179.91,3.21]
[1753899207782,6.28253469,179.99,179.87,6.28253469]
[1753899208088,6.28253469,179.99,179.87,9.49253469]
[1753899208089,3.17,179.98,179.87,9.49253469]
[1753899208482,3.17,179.98,179.88,3.21]
[1753899209084,3.17,179.98,179.87,6.28253469]
[1753899209479,3.17,179.98,179.88,3.13]
[1753899210683,3.08,179.94,179.88,3.13]
[1753899211590,6.28253469,179.9,179.78,6.28253469]
[1753899211793,5.561,179.84,179.78,6.28253469]
[1753899212088,3.08,179.82,179.8,3.13]
[1753899212484,6.28253469,179.9,179.78,6.28253469]
[1753899212885,3.08,179.85,179.83,3.13]
[1753899213384,3.08,179.85,179.84,3.13]
[1753899213590,3.08,179.89,179.79,3.13]
[1753899214094,6.28253469,179.9,179.81,3.13]
[1753899214095,5.5599,179.87,179.81,3.13]
[1753899214484,3.08,179.88,179.81,3.13]
[1753899214691,118.9537,179.97,179.78,6.28253469]
[1753899214692,6.28253469,179.87,179.78,3.13]
[1753899214885,3.08,179.86,179.78,3.13]
[1753899215788,3.08,179.82,179.79,3.13]
[1753899215986,3.08,179.81,179.79,3.13]
[1753899216594,6.28253469,179.87,179.76,9.41253469]
[1753899216595,3.08,179.86,179.76,9.41253469]
[1753899217393,3.08,179.82,179.76,9.41253469]
[1753899217894,3.08,179.82,179.77,3.13]
[1753899218691,3.08,179.82,179.77,8.6927]
[1753899218892,3.08,179.82,179.76,6.28253469]
[1753899219395,3.08,179.82,179.76,3.13]
[1753899220295,6.28253469,179.87,179.77,5.5629]
[1753899220593,3.08,179.86,179.77,8.6929]
[1753899220794,3.08,179.86,179.78,3.13]
[1753899220997,3.08,179.83,179.78,3.13]
[1753899221191,3.08,179.83,179.77,5.5629]
[1753899221387,8.6413,179.83,179.76,8.6931]
[1753899221595,3.08,179.82,179.76,8.6931]
[1753899221792,3.08,179.81,179.78,3.13]
[1753899221992,3.08,179.81,179.79,3.13]
[1753899224387,6.28253469,179.87,179.8,3.13]
[1753899224593,3.08,179.82,179.8,3.13]
[1753899225095,3.08,179.86,179.78,3.13]
[1753899225293,3.08,179.86,179.79,107.76]
[1753899225495,3.08,179.86,179.82,5.5613]
[1753899225696,3.08,179.89,179.81,3.13]
[1753899226602,3.08,179.87,179.84,3.13]
[1753899227099,3.08,179.87,179.85,8.6904]
[1753899227296,3.08,179.9,179.84,3.13]
[1753899227997,3.08,179.9,179.83,6.28253469]
[1753899227998,3.08,179.89,179.87,3.13]
[1753899228499,6.28253469,179.94,179.87,3.13]
[1753899228795,6.28253469,179.94,179.83,6.28253469]
[1753899228994,3.08,179.93,179.8,114.00253469]
[1753899229200,3.08,179.93,179.81,3.13]
[1753899231102,3.08,179.9,179.84,5.5605]
[1753899231302,6.28253469,179.94,179.86,3.13]
[1753899231303,3.08,179.93,179.86,3.13]
[1753899231597,5.5584,179.92,179.86,3.13]
[1753899231797,3.08,179.91,179.86,3.13]
[1753899231998,3.08,179.93,179.84,3.13]
[1753899232191,3.08,179.93,179.83,6.28253469]
[1753899232192,3.08,179.93,179.87,3.13]
[1753899232601,3.08,179.93,179.9,5.5587]
[1753899232804,3.08,179.93,179.9,8.6887]
[1753899233099,3.08,179.93,179.9,5.5587]
[1753899233293,3.08,179.93,179.91,8.6886]
[1753899233800,3.08,179.93,179.88,6.28253469]
[1753899233801,3.08,179.92,179.88,6.28253469]
[1753899234103,3.08,179.96,179.88,9.41253469]
[1753899234408,3.08,179.92,179.88,9.41253469]
[1753899234702,3.08,179.96,179.88,9.41253469]
[1753899234903,3.08,179.93,179.88,9.41253469]
[1753899235302,6.28253469,179.97,179.88,3.13]
[1753899235494,3.08,179.96,179.88,3.13]
[1753899236600,3.08,179.91,179.86,3.13]
[1753899236802,3.08,179.91,179.85,107.68]
[1753899236996,3.08,179.89,179.85,107.68]
[1753899237403,3.08,179.89,179.85,113.2403]
[1753899237600,3.08,179.88,179.85,116.3703]
[1753899237802,3.08,179.93,179.87,5.5597]
[1753899238095,5.5588,179.91,179.86,3.13]
[1753899238298,3.08,179.9,179.86,3.13]
[1753899238502,3.08,179.88,179.86,3.13]
[1753899238701,3.17,179.87,179.86,3.13]
[1753899238902,3.17,179.89,179.85,107.68]
[1753899239103,3.17,179.89,179.87,3.05]
[1753899239507,3.17,179.88,179.87,3.05]
[1753899239909,3.17,179.88,179.85,113.2404]
[1753899240103,3.17,179.88,179.85,107.68]
[1753899240304,3.17,179.9,179.85,110.73]
[1753899240606,3.17,179.89,179.86,3.05]
[1753899240914,3.17,179.89,179.87,3.05]
[1753899241410,6.28253469,179.94,179.87,3.05]
[1753899241708,3.17,179.88,179.87,3.05]
[1753899242212,3.17,179.88,179.85,116.2904]
[1753899242412,3.17,179.88,179.86,3.05]
[1753899242614,3.17,179.88,179.85,113.2404]
[1753899242615,3.17,179.89,179.81,3.05]
[1753899244119,3.17,179.9,179.81,3.05]
[1753899244513,5.5596,179.88,179.83,5.5609]
[1753899244719,3.17,179.9,179.84,3.05]
[1753899245113,5.5583,179.92,179.87,5.5597]
[1753899245312,3.17,179.9,179.87,8.6097]
[1753899245514,3.17,179.89,179.87,8.6097]
[1753899245818,3.17,179.9,179.86,8.61]
[1753899246019,3.17,179.9,179.86,3.05]
[1753899246210,3.17,179.9,179.86,8.6099]
[1753899246416,3.17,179.91,179.86,3.05]
[1753899247018,3.17,179.91,179.83,3.05]
[1753899247421,5.559,179.9,179.85,5.5603]
[1753899247717,3.17,179.89,179.83,3.05]
[1753899247914,3.17,179.89,179.88,5.5595]
[1753899248109,3.17,179.89,179.88,8.6095]
[1753899248513,3.17,179.89,179.83,6.28253469]
[1753899248719,3.17,179.87,179.83,6.28253469]
[1753899248911,3.17,179.86,179.84,3.05]
[1753899249819,6.28253469,179.95,179.84,3.05]
[1753899250016,3.17,179.85,179.84,3.05]
[1753899250213,3.17,179.85,179.82,8.6113]
[1753899250425,3.17,179.91,179.82,3.05]
[1753899250822,3.17,179.88,179.8,481.32]
[1753899251323,5.5603,179.86,179.81,5.5615]
[1753899251527,3.17,179.85,179.8,107.56]
[1753899252024,3.17,179.85,179.78,3.05]
[1753899252524,3.17,179.83,179.8,5.5618]
[1753899252916,6.28253469,179.89,179.78,3.05]
[1753899253121,3.17,179.84,179.78,3.05]
[1753899253527,3.17,179.84,179.81,5.5616]
[1753899253718,3.17,179.84,179.78,3.05]
[1753899254123,3.17,179.84,179.74,3.05]
[1753899254420,3.17,179.81,179.74,3.05]
[1753899254625,3.17,179.8,179.75,5.5633]
[1753899254820,3.17,179.81,179.77,3.05]
[1753899255026,5.5614,179.82,179.76,3.05]
[1753899255228,3.17,179.81,179.73,3.05]
[1753899255625,3.17,179.81,179.72,107.44]
[1753899256018,6.28253469,179.79,179.72,107.44]
[1753899256215,3.17,179.78,179.69,3.05]
[1753899256821,3.17,179.75,179.71,5.5646]
[1753899257021,3.17,179.75,179.69,3.05]
[1753899257519,3.17,179.74,179.68,107.42]
[1753899257721,3.17,179.74,179.67,3.05]
[1753899257927,3.17,179.72,179.68,5.5655]
[1753899258628,3.17,179.72,179.63,113.72253469]
[1753899258629,5.5639,179.74,179.63,113.72253469]
[1753899258831,3.17,179.75,179.68,3.05]
[1753899259031,3.17,179.75,179.67,3.05]
[1753899259332,3.17,179.72,179.64,3.05]
[1753899260434,3.17,179.72,179.63,107.44]
[1753899260630,5.5653,179.7,179.64,5.5667]
[1753899260836,3.17,179.69,179.63,110.49]
[1753899261524,3.17,179.68,179.63,110.49]
[1753899261930,5.5661,179.67,179.63,107.44]
[1753899262135,3.17,179.68,179.63,107.44]
[1753899262136,3.17,179.69,179.63,107.44]
[1753899262338,3.17,179.69,179.63,110.49]
[1753899262630,6.28253469,179.72,179.65,3.05]
[1753899262831,3.17,179.67,179.65,3.05]
[1753899263031,3.17,179.71,179.63,3.05]
[1753899263231,3.17,179.71,179.64,5.5669]
[1753899263433,3.17,179.71,179.63,3.05]
[1753899263933,3.17,179.68,179.59,110.47]
[1753899264134,3.17,179.68,179.59,107.42]
[1753899264732,3.17,179.68,179.59,110.47]
[1753899265036,3.17,179.68,179.6,3.05]
[1753899265238,5.5662,179.67,179.6,3.05]
[1753899265436,3.17,179.66,179.6,3.05]
[1753899265931,3.17,179.66,179.59,107.42]
[1753899266137,5.5671,179.64,179.59,107.42]
[1753899266338,9.45253469,179.66,179.58,3.05]
[1753899266339,3.17,179.63,179.58,3.05]
[1753899266926,3.17,179.62,179.59,3.05]
[1753899267129,3.17,179.65,179.57,3.05]
[1753899267333,6.28253469,179.66,179.54,113.70253469]
[1753899267334,5.5673,179.63,179.54,113.70253469]
[1753899267638,6.28253469,179.66,179.58,3.05]
[1753899267639,3.17,179.61,179.58,3.05]
[1753899267937,6.28253469,179.66,179.59,3.05]
[1753899268235,3.17,179.6,179.59,3.05]
[1753899268436,6.28253469,179.66,179.59,3.05]
[1753899268640,3.06,179.61,179.59,3.05]
[1753899269236,3.06,179.63,179.59,3.05]
[1753899269632,3.06,179.65,179.57,2.95]
[1753899270233,3.06,179.65,179.54,113.70253469]
[1753899270234,3.06,179.62,179.56,5.5692]
[1753899270436,3.06,179.62,179.58,2.95]
[1753899271541,3.06,179.6,179.59,2.95]
[1753899271837,6.28253469,179.6,179.51,2.95]
[1753899272144,3.06,179.55,179.51,2.95]
[1753899272341,6.28253469,179.6,179.51,2.95]
[1753899272640,3.06,179.53,179.51,2.95]
[1753899272838,3.06,179.53,179.51,5.5707]
[1753899273035,3.95125304,179.57,179.53,2.95]
[1753899273235,3.06,179.56,179.51,2.95]
[1753899273639,3.06,179.56,179.47,319.16246056]
[1753899273847,3.95125304,179.55,179.48,2.95]
[1753899274145,3.95125304,179.53,179.48,2.95]
[1753899274344,3.06,179.52,179.47,319.16246056]
[1753899274546,3.06,179.52,179.47,211.74246056]
[1753899274742,5.5712,179.51,179.47,214.69246056]
[1753899275137,3.06,179.48,179.42,107.4]
[1753899275345,3.06,179.48,179.44,5.5729]
[1753899275647,6.32490027,179.51,179.43,2.95]
[1753899275842,3.06,179.46,179.43,2.95]
[1753899276046,6.32490027,179.51,179.43,2.95]
[1753899276047,3.06,179.45,179.43,2.95]
[1753899276245,3.06,179.5,179.44,2.95]
[1753899276447,3.06,179.49,179.47,2.95]
[1753899276649,3.06,179.48,179.43,2.95]
[1753899276940,6.32490027,179.52,179.39,586.4365852]
[1753899277142,3.06,179.48,179.4,2.95]
[1753899277446,3.06,179.48,179.39,586.4365852]
[1753899277447,3.06,179.48,179.39,215.2265852]
[1753899277843,5.574,179.42,179.39,212.2765852]
[1753899278041,3.06,179.45,179.39,212.2765852]
[1753899278241,3.06,179.42,179.39,212.2765852]
[1753899278750,3.06,179.42,179.36,2.95]
[1753899279341,3.06,179.45,179.37,2.95]
[1753899280041,6.32490027,179.52,179.4,2.95]
[1753899280239,6.32490027,179.52,179.43,2.95]
[1753899280439,3.06,179.48,179.4,2.95]
[1753899281245,3.06,179.48,179.4,6.32490027]
[1753899281546,3.06,179.48,179.41,2.95]
[1753899281753,6.32490027,179.52,179.44,2.95]
[1753899281949,3.06,179.51,179.44,2.95]
[1753899282151,8.631,179.51,179.44,2.95]
[1753899282446,3.06,179.5,179.44,2.95]
[1753899283045,3.06,179.5,179.36,107.4]
[1753899283046,3.06,179.5,179.43,6.32490027]
[1753899283245,3.06,179.5,179.44,2.95]
[1753899283647,3.06,179.52,179.44,2.95]
[1753899283954,3.06,179.56,179.53,5.5702]
[1753899284140,6.32490027,179.6,179.53,2.95]
[1753899284141,3.06,179.55,179.53,2.95]
[1753899284342,3.06,179.53,179.51,2.95]
[1753899284547,3.06,179.52,179.49,2.95]
[1753899284753,3.06,179.52,179.5,2.95]
[1753899285151,3.06,179.55,179.51,8.5209]
[1753899285450,6.32490027,179.6,179.51,8.5209]
[1753899285451,3.06,179.54,179.51,2.95]
[1753899285646,6.32490027,179.6,179.46,6.32490027]
[1753899285851,6.32490027,179.6,179.43,107.42]
[1753899285852,6.32490027,179.54,179.43,113.74490027]
[1753899286052,3.06,179.53,179.45,2.95]
[1753899286854,3.06,179.48,179.45,2.95]
[1753899287751,3.06,179.51,179.44,2.95]
[1753899288249,6.32490027,179.51,179.44,2.95]
[1753899288458,3.06,179.5,179.43,107.42]
[1753899288754,3.06,179.47,179.41,2.95]
[1753899289151,5.5727,179.46,179.41,2.95]
[1753899289345,3.06,179.47,179.41,2.95]
[1753899290946,3.06,179.47,179.38,2.95]
[1753899291152,5.5729,179.45,179.38,8.5247]
[1753899291453,3.06,179.44,179.38,8.5247]
[1753899292151,8.6332,179.44,179.38,8.5247]
[1753899292454,3.06,179.44,179.38,8.5247]
[1753899292651,8.6331,179.44,179.38,8.5247]
[1753899292953,3.06,179.45,179.37,2.95]
[1753899293355,3.06,179.45,179.36,107.36]
[1753899293356,3.06,179.44,179.41,2.95]
[1753899293656,3.06,179.48,179.39,2.95]
[1753899293956,3.06,179.46,179.44,2.95]
[1753899294554,3.06,179.48,179.39,2.95]
[1753899295146,3.06,179.46,179.41,8.5239]
[1753899295447,3.06,179.48,179.39,2.95]
[1753899295651,3.06,179.48,179.38,6.32490027]
[1753899295851,3.06,179.48,179.39,2.95]
[1753899296245,3.06,179.48,179.43,2.95]
[1753899296454,3.06,179.46,179.44,2.95]
[1753899296655,6.32490027,179.49,179.38,6.32490027]
[1753899296863,3.06,179.45,179.39,2.95]
[1753899297360,3.06,179.4,179.39,2.95]
[1753899298059,3.06,179.4,179.36,113.68490027]
[1753899298060,3.06,179.42,179.37,2.95]
[1753899298260,3.06,179.45,179.36,107.36]
[1753899299159,3.06,179.39,179.37,3.26]
[1753899299458,3.06,179.38,179.34,3.26]
[1753899299657,3.06,179.37,179.35,3.26]
[1753899300264,5.5749,179.39,179.33,5.5763]
[1753899300265,3.06,179.41,179.33,3.26]
[1753899300758,6.32490027,179.43,179.32,6.32490027]
[1753899300954,6.32490027,179.4,179.33,3.26]
[1753899301155,3.06,179.39,179.33,3.26]
[1753899301756,6.32490027,179.41,179.31,107.32]
[1753899301957,6.32490027,179.41,179.34,3.26]
[1753899302155,3.06,179.4,179.28,3.26]
[1753899302360,3.06,179.37,179.28,3.26]
[1753899302556,3.06,179.4,179.31,3.26]
[1753899303362,3.06,179.4,179.33,8.8365]
[1753899303565,3.06,179.37,179.35,3.26]
[1753899303761,3.06,179.43,179.34,5.5761]
[1753899303967,3.06,179.43,179.35,3.26]
[1753899304167,3.06,179.43,179.34,5.5761]
[1753899304168,6.32490027,179.44,179.3,6.32490027]
[1753899304368,3.06,179.38,179.36,3.26]
[1753899305161,3.06,179.41,179.39,3.26]
[1753899305364,6.32490027,179.47,179.4,3.26]
[1753899305563,3.06,179.46,179.4,3.26]
[1753899305864,379.25037767,179.52,179.41,3.26]
[1753899306068,6.32490027,179.49,179.36,6.32490027]
[1753899306365,6.32490027,179.46,179.37,3.26]
[1753899306669,5.574,179.42,179.34,3.26]
[1753899306859,5.574,179.42,179.34,6.32490027]
[1753899307065,8.634,179.42,179.37,5.5752]
[1753899307266,6.32490027,179.43,179.35,3.26]
[1753899307670,6.32490027,179.46,179.35,3.26]
[1753899307973,3.06,179.43,179.35,3.26]
[1753899308167,3.06,179.43,179.37,5.5752]
[1753899308369,3.06,179.43,179.37,3.26]
[1753899308972,6.32490027,179.46,179.38,5.5747]
[1753899309165,3.06,179.45,179.38,3.26]
[1753899309367,6.32490027,179.43,179.3,6.32490027]
[1753899309866,6.32490027,179.43,179.31,3.26]
[1753899310065,5.5748,179.39,179.34,5.5759]
[1753899310266,5.5748,179.39,179.3,6.32490027]
[1753899310465,6.32490027,179.46,179.33,6.32490027]
[1753899310668,3.06,179.45,179.34,3.26]
[1753899310861,6.32490027,179.43,179.34,3.26]
[1753899311061,3.06,179.42,179.34,3.26]
[1753899311262,6.32490027,179.43,179.38,3.26]
[1753899311263,3.06,179.41,179.38,3.26]
[1753899311565,3.06,179.42,179.34,3.26]
[1753899311760,3.06,179.42,179.33,6.32490027]
[1753899311967,3.06,179.42,179.34,3.26]
[1753899312171,3.06,179.42,179.35,5.5757]
[1753899312371,6.32490027,179.43,179.33,9.58490027]
[1753899312372,3.06,179.39,179.33,9.58490027]
[1753899312567,3.06,179.39,179.3,3.26]
[1753899312763,5.5764,179.34,179.3,8.8372]
[1753899312967,3.06,179.33,179.3,3.26]
[1753899313168,3.06,179.33,179.31,3.26]
[1753899314171,8.6365,179.33,179.31,3.26]
[1753899314878,3.06,179.33,179.24,3.26]
[1753899315275,5.5769,179.32,179.28,8.838]
[1753899315479,3.06,179.3,179.28,8.838]
[1753899315675,3.06,179.3,179.28,3.26]
[1753899316376,10.97498353,179.4,179.23,3.26]
[1753899316377,3.06,179.33,179.23,3.26]
[1753899316576,3.06,179.31,179.23,3.26]
[1753899316777,5.5793,179.25,179.21,5.5802]
[1753899317080,6.32490027,179.29,179.19,9.58490027]
[1753899317081,3.06,179.24,179.19,9.58490027]
[1753899317274,6.32490027,179.29,179.19,9.58490027]
[1753899317275,3.06,179.23,179.19,3.26]
[1753899317483,6.32490027,179.26,179.17,485.26]
[1753899317682,3.06,179.25,179.17,485.26]
[1753899317878,3.06,179.19,179.17,110.5]
[1753899318081,3.06,179.25,179.17,110.5]
[1753899318681,3.06,179.25,179.18,3.26]
[1753899319087,3.06,179.25,179.17,107.24]
[1753899319281,3.06,179.25,179.16,3.26]
[1753899319480,4.65008326,179.31,179.14,3.26]
[1753899319481,3.06,179.22,179.14,3.26]
[1753899320088,3.06,179.22,179.11,4.23141581]
[1753899320581,5.5817,179.17,179.12,5.5828]
[1753899320785,3.06,179.15,179.12,3.26]
[1753899320983,3.06,179.14,179.12,3.26]
[1753899321185,6.32490027,179.17,179.1,107.24]
[1753899321387,3.06,179.16,179.1,107.24]
[1753899321589,3.06,179.16,179.06,335.06930686]
[1753899321889,3.06,179.13,179.06,3.26]
[1753899322188,6.32490027,179.14,179.05,3.26]
[1753899322189,3.06,179.08,179.05,3.26]
[1753899322386,3.06,179.1,179.03,110.5]
[1753899322585,5.5849,179.06,179.01,5.5863]
[1753899322792,3.06,179.05,179.02,3.26]
[1753899323287,3.06,179.1,179.04,3.26]
[1753899323587,111.93008326,179.23,179.04,3.26]
[1753899323588,3.06,179.12,179.04,3.26]
[1753899323996,3.06,179.15,179.07,3.26]
[1753899324791,6.32490027,179.13,179.04,8.8455]
[1753899325096,3.06,179.09,179.02,3.26]
[1753899325492,3.06,179.11,179.03,3.26]
[1753899326184,3.06,179.1,179.07,3.26]
[1753899326384,3.06,179.15,179.08,6.32490027]
[1753899326597,3.06,179.15,179.13,3.26]
[1753899326792,3.06,179.18,179.09,3.26]
[1753899326991,3.06,179.18,179.1,3.26]
[1753899327190,5.5815,179.17,179.12,5.583]
[1753899327391,6.32490027,179.21,179.13,3.26]
[1753899327587,3.06,179.15,179.13,3.26]
[1753899327796,3.06,179.13,179.1,3.26]
[1753899327986,3.06,179.12,179.1,3.26]
[1753899328186,3.06,179.13,179.1,3.26]
[1753899328390,3.06,179.17,179.1,6.32490027]
[1753899328587,3.06,179.17,179.11,3.26]
[1753899328894,3.09,179.17,179.1,6.32490027]
[1753899329095,3.09,179.23,179.14,3.03]
[1753899329991,5.5812,179.18,179.14,3.03]
[1753899330192,3.09,179.23,179.14,3.03]
[1753899330389,3.09,179.23,179.15,5.5821]
[1753899330701,3.09,179.23,179.14,3.03]
[1753899330993,3.09,179.19,179.13,6.32490027]
[1753899331396,3.09,179.23,179.14,3.03]
[1753899332301,6.32490027,179.23,179.14,3.03]
[1753899332494,3.09,179.22,179.14,3.03]
[1753899332794,5.5809,179.19,179.15,5.5819]
[1753899333097,3.09,179.18,179.13,3.03]
[1753899333298,3.09,179.18,179.12,6.32490027]
[1753899333599,3.09,179.16,179.14,3.03]
[1753899334195,3.09,179.13,179.1,3.03]
[1753899334398,3.09,179.18,179.1,3.03]
[1753899335398,3.09,179.18,179.06,6.32490027]
[1753899335399,3.09,179.18,179.07,3.03]
[1753899335591,5.5837,179.1,179.07,3.03]
[1753899335797,3.09,179.15,179.05,116.63490027]
[1753899336001,3.09,179.15,179.06,3.03]
[1753899337401,3.09,179.15,179.07,3.03]
[1753899337899,5.5832,179.12,179.07,5.5845]
[1753899338102,3.09,179.15,179.06,3.03]
[1753899338402,8.6729,179.13,179.1,3.03]
[1753899339102,3.09,179.13,179.1,3.03]
[1753899339297,3.09,179.12,179.1,3.03]
[1753899339497,5.5822,179.15,179.06,3.03]
[1753899339692,3.09,179.16,179.09,3.03]
[1753899339898,6.32490027,179.22,179.12,3.03]
[1753899339899,3.09,179.19,179.12,3.03]
[1753899340403,3.09,179.19,179.14,5.5824]
[1753899340600,5.5815,179.17,179.14,3.03]
[1753899340798,6.32490027,179.22,179.14,3.03]
[1753899341015,3.09,179.21,179.11,3.03]
[1753899341206,3.09,179.18,179.11,3.03]
[1753899341600,5.5829,179.13,179.08,9.35490027]
[1753899341906,3.09,179.15,179.06,3.03]
[1753899342505,6.32490027,179.13,179.06,3.03]
[1753899342701,3.09,179.12,179.06,3.03]
[1753899342910,3.09,179.07,179.03,3.03]
[1753899343408,3.09,179.07,179.02,6.32490027]
[1753899343609,3.09,179.07,179.05,3.03]
[1753899343908,16.69,179.23,179.05,3.03]
[1753899344205,6.32490027,179.19,179.1,3.03]
[1753899344409,3.09,179.12,179.1,3.03]
[1753899344605,3.09,179.15,179.02,9.35490027]
[1753899344809,3.09,179.12,179.03,3.03]
[1753899345008,3.09,179.12,179.02,6.32490027]
[1753899345205,3.09,179.12,179.02,3.03]
[1753899345613,3.09,179.07,179.04,8.6155]
[1753899346411,3.09,179.07,179.05,3.03]
[1753899346616,3.09,179.12,179.02,3.03]
[1753899346908,3.09,179.12,179.04,3.03]
[1753899347113,3.09,179.08,179.05,3.03]
[1753899347710,3.09,179.12,179.02,3.03]
[1753899348308,3.09,179.12,179.05,3.03]
[1753899348520,6.32490027,179.25,179.11,3.03]
[1753899348831,3.09,179.24,179.17,3.03]
[1753899349516,3.09,179.26,179.17,3.03]
[1753899349915,3.09,179.23,179.2,3.03]
[1753899350120,3.09,179.25,179.19,6.32490027]
[1753899350626,3.09,179.25,179.22,3.03]
[1753899350821,8.6693,179.24,179.21,5.5801]
[1753899351023,107.22,179.34,179.11,11.1667]
[1753899351024,3.09,179.21,179.18,3.03]
[1753899351325,8.6696,179.24,179.2,5.5803]
[1753899351527,3.09,179.21,179.18,3.03]
[1753899352019,3.09,179.2,179.18,3.03]
[1753899352218,3.09,179.23,179.17,6.32490027]
[1753899352419,6.32490027,179.28,179.2,5.5803]
[1753899352420,8.6693,179.25,179.2,5.5803]
[1753899352627,8.6693,179.25,179.18,3.03]
[1753899352822,3.09,179.25,179.19,3.03]
[1753899353128,10.30427848,179.32,179.18,10.30427848]
[1753899353428,3.09,179.34,179.25,3.03]
[1753899353821,3.09,179.34,179.26,5.5786]
[1753899354024,3.09,179.34,179.25,3.03]
[1753899354628,3.09,179.34,179.22,10.30427848]
[1753899354629,3.09,179.34,179.22,13.33427848]
[1753899355021,3.09,179.34,179.2,3.03]
[1753899355223,3.09,179.26,179.22,3.03]
[1753899355527,3.09,179.24,179.2,3.03]
[1753899355826,3.09,179.24,179.21,3.03]
[1753899356226,3.09,179.23,179.21,3.03]
[1753899356929,10.30427848,179.33,179.16,10.30427848]